fUSD/lending_fUSD_20250208
["ID","MTS","AMOUNT","RATE_DAILY","PERIOD"]
[352269344,1739022638543,-602.11,0.00010115,2]
[352269346,1739022638555,-500.0,0.00010115,2]
[352269348,1739022638567,-500.0,0.00010115,2]
[352269350,1739022638578,-3607.09,0.00010115,2]
[352269353,1739022638592,-500.0,0.00010115,2]
[352269355,1739022638603,-150.99,0.00010115,2]
[352269357,1739022638615,-500.0,0.00010115,2]
[352269359,1739022638626,-500.0,0.00010115,2]
[352269361,1739022638638,-500.0,0.00010115,2]
[352269363,1739022638649,-6438.27,0.00010115,2]
[352269366,1739022638661,-679.97,0.00010115,2]
[352269368,1739022638673,-500.0,0.00010115,2]
[352269370,1739022638688,-500.0,0.00010115,2]
[352269372,1739022638704,-938.61,0.00010115,2]
[352269378,1739022638717,-999.99,0.00010115,2]
[352269382,1739022638729,-500.0,0.00010115,2]
[352269387,1739022638741,-500.0,0.00010115,2]
[352269390,1739022638752,-500.63767827,0.00010115,2]
[352269392,1739022638764,-500.0,0.00010115,2]
[352269394,1739022638775,-1249.56,0.00010115,2]
[352269397,1739022638787,-500.0,0.00010115,2]
[352269399,1739022638797,-500.0,0.00010115,2]
[352269401,1739022638811,-1190.95,0.00010115,2]
[352269403,1739022638821,-547.3,0.00010115,2]
[352269405,1739022638832,-500.0,0.00010115,2]
[352269407,1739022638843,-500.0,0.00010115,2]
[352269410,1739022638854,-500.0,0.00010115,2]
[352269412,1739022638865,-500.0,0.00010115,2]
[352269414,1739022638875,-500.0,0.00010115,2]
[352269416,1739022638887,-500.0,0.00010115,2]
[352269418,1739022638896,-500.0,0.00010115,2]
[352269420,1739022638906,-500.0,0.00010115,2]
[352269422,1739022638916,-959.76,0.00010115,2]
[352269424,1739022638927,-432.07449614,0.00010115,2]
[352269426,1739022638937,-1584.28,0.00010115,2]
[352269429,1739022638947,-500.0,0.00010115,2]
[352269431,1739022638960,-500.0,0.00010115,2]
[352269433,1739022638972,-500.0,0.00010115,2]
[352269436,1739022638984,-819.07,0.00010115,2]
[352269438,1739022638994,-500.0,0.00010115,2]
[352269440,1739022639004,-689.5,0.00010115,2]
[352269442,1739022639013,-500.0,0.00010115,2]
[352269444,1739022639023,-500.0,0.00010115,2]
[352269446,1739022639033,-500.0,0.00010115,2]
[352269448,1739022639043,-731.36,0.00010115,2]
[352269450,1739022639054,-500.0,0.00010115,2]
[352269452,1739022639066,-500.0,0.00010115,2]
[352269454,1739022639077,-1111.68,0.00010115,2]
[352269457,1739022639088,-500.0,0.00010115,2]
[352269459,1739022639098,-500.0,0.00010115,2]
[352269461,1739022639109,-500.0,0.00010115,2]
[352269463,1739022639119,-1624.42,0.00010115,2]
[352269465,1739022639129,-263.86790794,0.00010115,2]
[352269470,1739022639167,-236.13209206,0.00010115,2]
[352269472,1739022639177,-702.87,0.00010115,2]
[352269474,1739022639187,-4026.07,0.00010115,2]
[352269476,1739022639198,-1091.09,0.00010115,2]
[352269478,1739022639209,-1338.06,0.00010115,2]
[352269481,1739022639219,-500.0,0.00010115,2]
[352269483,1739022639231,-1508.55,0.00010115,2]
[352269485,1739022639241,-500.0,0.00010115,2]
[352269487,1739022639251,-500.0,0.00010115,2]
[352269489,1739022639261,-604.0,0.00010115,2]
[352269491,1739022639273,-1939.0,0.00010115,2]
[352269493,1739022639283,-500.0,0.00010115,2]
[352269495,1739022639293,-937.23,0.00010115,2]
[352269497,1739022639303,-985.5,0.00010115,2]
[352269499,1739022639314,-2701.57,0.00010115,2]
[352269501,1739022639324,-500.0,0.00010115,2]
[352269504,1739022639335,-1087.02,0.00010115,2]
[352269506,1739022639345,-501.05515196,0.00010115,2]
[352269508,1739022639356,-500.0,0.00010115,2]
[352269510,1739022639366,-500.0,0.00010115,2]
[352269512,1739022639376,-1793.48,0.00010115,2]
[352269514,1739022639387,-628.51,0.00010115,2]
[352269516,1739022639398,-500.0,0.00010115,2]
[352269518,1739022639408,-501.36396793,0.00010115,2]
[352269521,1739022639418,-500.0,0.00010115,2]
[352269523,1739022639428,-500.0,0.00010115,2]
[352269525,1739022639438,-500.0,0.00010115,2]
[352269527,1739022639448,-500.0,0.00010115,2]
[352269529,1739022639458,-500.0,0.00010115,2]
[352269531,1739022639469,-500.0,0.00010115,2]
[352269533,1739022639480,-1798.79,0.00010115,2]
[352269535,1739022639490,-648.31,0.00010115,2]
[352269538,1739022639500,-1673.96,0.00010115,2]
[352269540,1739022639511,-500.0,0.00010115,2]
[352269542,1739022639521,-500.0,0.00010115,2]
[352269544,1739022639532,-500.0,0.00010115,2]
[352269546,1739022639542,-500.0,0.00010115,2]
[352269548,1739022639552,-500.0,0.00010115,2]
[352269550,1739022639563,-1758.96,0.00010115,2]
[352269552,1739022639573,-500.0,0.00010115,2]
[352269554,1739022639585,-2612.7,0.00010115,2]
[352269556,1739022639597,-1382.75,0.00010115,2]
[352269559,1739022639607,-500.0,0.00010115,2]
[352269561,1739022639618,-500.0,0.00010115,2]
[352269563,1739022639629,-500.0,0.00010115,2]
[352269565,1739022639639,-500.0,0.00010115,2]
[352269567,1739022639650,-500.0,0.00010115,2]
[352269569,1739022639662,-675.52,0.00010115,2]
[352269571,1739022639675,-500.0,0.00010115,2]
[352269573,1739022639686,-500.0,0.00010115,2]
[352269576,1739022639697,-595.34741087,0.00010115,2]
[352269578,1739022639708,-500.0,0.00010115,2]
[352269580,1739022639719,-500.0,0.00010115,2]
[352269582,1739022639729,-500.0,0.00010115,2]
[352269584,1739022639739,-1042.7,0.00010115,2]
[352269586,1739022639749,-500.0,0.00010115,2]
[352269588,1739022639760,-500.0,0.00010115,2]
[352269590,1739022639771,-500.0,0.00010115,2]
[352269592,1739022639782,-1848.38,0.00010115,2]
[352269595,1739022639792,-500.0,0.00010115,2]
[352269597,1739022639802,-500.0,0.00010115,2]
[352269599,1739022639814,-500.0,0.00010115,2]
[352269601,1739022639824,-500.0,0.00010115,2]
[352269603,1739022639833,-500.0,0.00010115,2]
[352269605,1739022639844,-500.0,0.00010115,2]
[352269607,1739022639854,-508.38208409,0.00010115,2]
[352269609,1739022639865,-500.0,0.00010115,2]
[352269611,1739022639876,-707.0,0.00010115,2]
[352269613,1739022639886,-843.89,0.00010115,2]
[352269615,1739022639897,-500.0,0.00010115,2]
[352269618,1739022639908,-1190.12,0.00010115,2]
[352269620,1739022639918,-500.0,0.00010115,2]
[352269622,1739022639928,-500.0,0.00010115,2]
[352269624,1739022639938,-500.0,0.00010115,2]
[352269626,1739022639948,-660.16,0.00010115,2]
[352269628,1739022639959,-500.0,0.00010115,2]
[352269630,1739022639970,-500.0,0.00010115,2]
[352269632,1739022639981,-500.0,0.00010115,2]
[352269633,1739022639991,-500.0,0.00010115,2]
[352269634,1739022640002,-500.0,0.00010115,2]
[352269635,1739022640012,-510.2,0.00010115,2]
[352269636,1739022640022,-500.0,0.00010115,2]
[352269637,1739022640032,-378.41603095,0.00010115,2]
[352269638,1739022640042,-500.0,0.00010115,2]
[352269639,1739022640052,-838.83,0.00010115,2]
[352269640,1739022640064,-500.0,0.00010115,2]
[352269641,1739022640074,-500.0,0.00010115,2]
[352269642,1739022640084,-500.0,0.00010115,2]
[352269643,1739022640098,-500.0,0.00010115,2]
[352269644,1739022640120,-500.0,0.00010115,2]
[352269645,1739022640133,-500.0,0.00010115,2]
[352269647,1739022640144,-860.15,0.00010115,2]
[352269649,1739022640155,-1770.55,0.00010115,2]
[352269651,1739022640166,-1642.67,0.00010115,2]
[352269653,1739022640176,-500.0,0.00010115,2]
[352269655,1739022640186,-25820.80659801,0.00010116,2]
[352269660,1739022640221,-945.89223754,0.00010116,2]
[352269662,1739022640231,-8145.87,0.00010116,2]
[352269664,1739022640242,-3004.02,0.00010116,2]
[352269666,1739022640252,-500.0,0.00010116,2]
[352269668,1739022640263,-500.0,0.00010116,2]
[352269670,1739022640274,-500.0,0.00010116,2]
[352269672,1739022640285,-500.0,0.00010116,2]
[352269674,1739022640295,-500.0,0.00010116,2]
[352269676,1739022640305,-500.0,0.00010116,2]
[352269678,1739022640316,-500.0,0.00010116,2]
[352269680,1739022640329,-500.0,0.00010116,2]
[352269682,1739022640340,-500.0,0.00010116,2]
[352269685,1739022640351,-500.0,0.00010116,2]
[352269687,1739022640362,-500.0,0.00010116,2]
[352269689,1739022640374,-500.0,0.00010116,2]
[352269691,1739022640384,-500.0,0.00010116,2]
[352269693,1739022640394,-500.0,0.00010116,2]
[352269695,1739022640405,-500.0,0.00010116,2]
[352269697,1739022640420,-500.0,0.00010116,2]
[352269700,1739022640430,-500.0,0.00010116,2]
[352269702,1739022640440,-500.0,0.00010116,2]
[352269704,1739022640451,-500.0,0.00010116,2]
[352269706,1739022640462,-500.0,0.00010116,2]
[352269708,1739022640472,-642.49845043,0.00010116,2]
[352269710,1739022640482,-505.41454234,0.00010116,2]
[352269712,1739022640493,-500.0,0.00010116,2]
[352269714,1739022640505,-500.0,0.00010116,2]
[352269716,1739022640515,-500.0,0.00010116,2]
[352269718,1739022640526,-500.0,0.00010116,2]
[352269720,1739022640536,-500.0,0.00010116,2]
[352269723,1739022640549,-500.0,0.00010116,2]
[352269725,1739022640559,-500.0,0.00010116,2]
[352269727,1739022640570,-500.0,0.00010116,2]
[352269729,1739022640581,-500.0,0.00010116,2]
[352269731,1739022640593,-502.62465536,0.00010116,2]
[352269733,1739022640604,-500.0,0.00010116,2]
[352269735,1739022640614,-500.0,0.00010116,2]
[352269737,1739022640624,-500.0,0.00010116,2]
[352269739,1739022640634,-500.0,0.00010116,2]
[352269741,1739022640646,-521.98112458,0.00010116,2]
[352269743,1739022640658,-500.0,0.00010116,2]
[352269745,1739022640668,-509.01854039,0.00010116,2]
[352269747,1739022640679,-500.0,0.00010116,2]
[352269749,1739022640690,-500.0,0.00010116,2]
[352269751,1739022640700,-500.0,0.00010116,2]
[352269754,1739022640710,-500.0,0.00010116,2]
[352269756,1739022640720,-500.0,0.00010116,2]
[352269758,1739022640731,-500.0,0.00010116,2]
[352269760,1739022640741,-500.0,0.00010116,2]
[352269762,1739022640751,-500.0,0.00010116,2]
[352269764,1739022640762,-500.0,0.00010116,2]
[352269767,1739022640773,-500.0,0.00010116,2]
[352269769,1739022640784,-500.0,0.00010116,2]
[352269771,1739022640794,-500.0,0.00010116,2]
[352269773,1739022640804,-500.0,0.00010116,2]
[352269775,1739022640819,-631.85,0.00010116,2]
[352269777,1739022640837,-500.0,0.00010116,2]
[352269779,1739022640848,-500.0,0.00010116,2]
[352269781,1739022640858,-447.63097079,0.00010116,2]
[352269783,1739022640868,-500.0,0.00010116,2]
[352269785,1739022640879,-151.33223238,0.00010116,2]
[352269787,1739022640889,-671.63,0.00010116,2]
[352269789,1739022640900,-869.01,0.00010116,2]
[352269792,1739022640911,-283.53424554,0.00010116,2]
[352269794,1739022640924,-500.0,0.00010116,2]
[352269796,1739022640934,-500.0,0.00010116,2]
[352269798,1739022640944,-500.0,0.00010116,2]
[352269800,1739022640956,-265.16090689,0.00010116,2]
[352269802,1739022640966,-500.0,0.00010116,2]
[352269804,1739022640975,-500.0,0.00010116,2]
[352269806,1739022640986,-500.0,0.00010116,2]
[352269808,1739022640996,-500.0,0.00010116,2]
[352269810,1739022641006,-962.53,0.00010116,2]
[352269812,1739022641015,-500.0,0.00010116,2]
[352269814,1739022641025,-716.24,0.00010116,2]
[352269817,1739022641035,-500.0,0.00010116,2]
[352269819,1739022641046,-500.0,0.00010116,2]
[352269821,1739022641055,-500.0,0.00010116,2]
[352269823,1739022641067,-500.0,0.00010116,2]
[352269825,1739022641076,-500.0,0.00010116,2]
[352269827,1739022641086,-500.0,0.00010116,2]
[352269829,1739022641096,-500.0,0.00010116,2]
[352269831,1739022641106,-500.0,0.00010116,2]
[352269833,1739022641117,-538.97,0.00010116,2]
[352269835,1739022641127,-792.08,0.00010116,2]
[352269837,1739022641137,-500.0,0.00010116,2]
[352269839,1739022641147,-627.77,0.00010116,2]
[352269841,1739022641157,-500.0,0.00010116,2]
[352269844,1739022641168,-888.63,0.00010116,2]
[352269846,1739022641178,-482.26704015,0.00010116,2]
[352269848,1739022641187,-500.0,0.00010116,2]
[352269850,1739022641197,-534.85,0.00010116,2]
[352269852,1739022641207,-500.0,0.00010116,2]
[352269854,1739022641217,-500.0,0.00010116,2]
[352269856,1739022641227,-500.0,0.00010116,2]
[352269858,1739022641237,-500.0,0.00010116,2]
[352269860,1739022641246,-500.0,0.00010116,2]
[352269862,1739022641257,-500.0,0.00010116,2]
[352269864,1739022641266,-500.0,0.00010116,2]
[352269866,1739022641276,-500.0,0.00010116,2]
[352269868,1739022641286,-500.0,0.00010116,2]
[352269870,1739022641295,-656.61,0.00010116,2]
[352269873,1739022641306,-500.0,0.00010116,2]
[352269875,1739022641316,-500.0,0.00010116,2]
[352269877,1739022641326,-500.0,0.00010116,2]
[352269879,1739022641336,-500.0,0.00010116,2]
[352269881,1739022641345,-500.0,0.00010116,2]
[352269883,1739022641359,-500.0,0.00010116,2]
[352269885,1739022641374,-500.0,0.00010116,2]
[352269887,1739022641384,-500.0,0.00010116,2]
[352269889,1739022641394,-500.0,0.00010116,2]
[352269891,1739022641404,-500.0,0.00010116,2]
[352269893,1739022641414,-500.0,0.00010116,2]
[352269896,1739022641424,-500.0,0.00010116,2]
[352269898,1739022641434,-788.79,0.00010116,2]
[352269900,1739022641445,-500.0,0.00010116,2]
[352269902,1739022641455,-500.0,0.00010116,2]
[352269904,1739022641465,-500.0,0.00010116,2]
[352269906,1739022641475,-500.0,0.00010116,2]
[352269908,1739022641485,-500.0,0.00010116,2]
[352269910,1739022641495,-500.0,0.00010116,2]
[352269912,1739022641505,-622.28,0.00010116,2]
[352269914,1739022641515,-500.0,0.00010116,2]
[352269916,1739022641525,-500.0,0.00010116,2]
[352269918,1739022641535,-500.0,0.00010116,2]
[352269921,1739022641545,-500.0,0.00010116,2]
[352269923,1739022641556,-1019.3,0.00010116,2]
[352269925,1739022641567,-500.0,0.00010116,2]
[352269926,1739022641577,-500.0,0.00010116,2]
[352269928,1739022641589,-594.67,0.00010116,2]
[352269930,1739022641600,-500.0,0.00010116,2]
[352269932,1739022641611,-500.0,0.00010116,2]
[352269934,1739022641621,-692.46,0.00010116,2]
[352269936,1739022641632,-501.35559629,0.00010116,2]
[352269938,1739022641642,-500.0,0.00010116,2]
[352269970,1739022642053,-500.0,0.00010116,2]
[352269972,1739022642076,-566.86,0.00010116,2]
[352269975,1739022642094,-566.86,0.00010116,2]
[352269976,1739022642103,-500.0,0.00010116,2]
[352269978,1739022642113,-500.0,0.00010116,2]
[352269980,1739022642123,-647.22,0.00010116,2]
[352269982,1739022642132,-500.0,0.00010116,2]
[352269984,1739022642142,-500.0,0.00010116,2]
[352269986,1739022642151,-612.42115272,0.00010116,2]
[352269988,1739022642160,-500.0,0.00010116,2]
[352269989,1739022642169,-500.0,0.00010116,2]
[352269991,1739022642178,-500.0,0.00010116,2]
[352269993,1739022642187,-500.0,0.00010116,2]
[352269995,1739022642197,-519.15,0.00010116,2]
[352269996,1739022642206,-500.0,0.00010116,2]
[352269998,1739022642221,-500.0,0.00010116,2]
[352270000,1739022642232,-500.0,0.00010116,2]
[352270002,1739022642243,-500.0,0.00010116,2]
[352270004,1739022642252,-500.0,0.00010116,2]
[352270006,1739022642261,-500.0,0.00010116,2]
[352270007,1739022642270,-500.0,0.00010116,2]
[352270009,1739022642278,-647.07,0.00010116,2]
[352270011,1739022642287,-500.0,0.00010116,2]
[352270013,1739022642296,-643.41,0.00010116,2]
[352270015,1739022642305,-500.0,0.00010116,2]
[352270016,1739022642316,-500.0,0.00010116,2]
[352270018,1739022642324,-778.13,0.00010116,2]
[352270020,1739022642333,-667.42,0.00010116,2]
[352270022,1739022642342,-500.0,0.00010116,2]
[352270023,1739022642354,-500.0,0.00010116,2]
[352270025,1739022642363,-500.0,0.00010116,2]
[352270027,1739022642372,-526.23,0.00010116,2]
[352270029,1739022642381,-500.0,0.00010116,2]
[352270031,1739022642391,-500.0,0.00010116,2]
[352270032,1739022642400,-663.41,0.00010116,2]
[352270034,1739022642411,-500.0,0.00010116,2]
[352270036,1739022642420,-643.79,0.00010116,2]
[352270038,1739022642429,-643.46,0.00010116,2]
[352270039,1739022642438,-692.89,0.00010116,2]
[352270041,1739022642448,-637.89,0.00010116,2]
[352270043,1739022642458,-518.79,0.00010116,2]
[352270044,1739022642467,-500.0,0.00010116,2]
[352270046,1739022642478,-278.58167217,0.00010116,2]
[352270048,1739022642488,-500.0,0.00010116,2]
[352270050,1739022642499,-500.0,0.00010116,2]
[352270052,1739022642509,-500.0,0.00010116,2]
[352270053,1739022642519,-500.0,0.00010116,2]
[352270055,1739022642530,-500.0,0.00010116,2]
[352270057,1739022642541,-500.0,0.00010116,2]
[352270059,1739022642550,-500.0,0.00010116,2]
[352270061,1739022642560,-500.0,0.00010116,2]
[352270063,1739022642571,-848.02,0.00010116,2]
[352270064,1739022642580,-500.0,0.00010116,2]
[352270066,1739022642591,-500.0,0.00010116,2]
[352270068,1739022642602,-672.75,0.00010116,2]
[352270070,1739022642611,-500.0,0.00010116,2]
[352270072,1739022642621,-616.91,0.00010116,2]
[352270074,1739022642631,-500.0,0.00010116,2]
[352270076,1739022642640,-792.4,0.00010116,2]
[352270077,1739022642649,-500.0,0.00010116,2]
[352270079,1739022642658,-500.0,0.00010116,2]
[352270081,1739022642667,-1235.91,0.00010116,2]
[352270083,1739022642678,-500.0,0.00010116,2]
[352270085,1739022642688,-500.0,0.00010116,2]
[352270087,1739022642697,-839.04,0.00010116,2]
[352270088,1739022642705,-862.41,0.00010116,2]
[352270090,1739022642714,-500.0,0.00010116,2]
[352270092,1739022642723,-1010.92,0.00010116,2]
[352270094,1739022642732,-2316.86,0.00010116,2]
[352270096,1739022642741,-500.0,0.00010116,2]
[352270098,1739022642750,-500.0,0.00010116,2]
[352270099,1739022642759,-500.0,0.00010116,2]
[352270101,1739022642768,-599.03,0.00010116,2]
[352270103,1739022642776,-715.08,0.00010116,2]
[352270105,1739022642785,-792.29,0.00010116,2]
[352270107,1739022642794,-500.0,0.00010116,2]
[352270109,1739022642803,-602.48011455,0.00010116,2]
[352270110,1739022642812,-500.0,0.00010116,2]
[352270112,1739022642821,-500.0,0.00010116,2]
[352270114,1739022642832,-1883.16,0.00010116,2]
[352270116,1739022642840,-770.45,0.00010116,2]
[352270118,1739022642849,-975.28,0.00010116,2]
[352270120,1739022642858,-628.94,0.00010116,2]
[352270121,1739022642868,-500.0,0.00010116,2]
[352270123,1739022642878,-1459.88,0.00010116,2]
[352270125,1739022642887,-500.0,0.00010116,2]
[352270127,1739022642896,-500.0,0.00010116,2]
[352270129,1739022642905,-500.0,0.00010116,2]
[352270131,1739022642915,-500.0,0.00010116,2]
[352270132,1739022642924,-775.05,0.00010116,2]
[352270134,1739022642933,-3576.88,0.00010116,2]
[352270136,1739022642942,-1161.35,0.00010116,2]
[352270138,1739022642951,-500.0,0.00010116,2]
[352270140,1739022642959,-500.0,0.00010116,2]
[352270142,1739022642968,-500.0,0.00010116,2]
[352270143,1739022642977,-1056.28,0.00010116,2]
[352270145,1739022642986,-500.0,0.00010116,2]
[352270147,1739022642995,-500.0,0.00010116,2]
[352270149,1739022643003,-500.0,0.00010116,2]
[352270151,1739022643012,-749.71,0.00010116,2]
[352270152,1739022643021,-500.0,0.00010116,2]
[352270154,1739022643030,-500.0,0.00010116,2]
[352270156,1739022643039,-912.82,0.00010116,2]
[352270158,1739022643047,-1290.4,0.00010116,2]
[352270160,1739022643056,-705.64,0.00010116,2]
[352270162,1739022643065,-2063.34,0.00010116,2]
[352270163,1739022643074,-508.83,0.00010116,2]
[352270165,1739022643082,-830.2,0.00010116,2]
[352270167,1739022643092,-898.57,0.00010116,2]
[352270169,1739022643101,-500.0,0.00010116,2]
[352270171,1739022643110,-500.0,0.00010116,2]
[352270173,1739022643119,-588.06,0.00010116,2]
[352270174,1739022643128,-1534.46,0.00010116,2]
[352270176,1739022643137,-500.1,0.00010116,2]
[352270179,1739022643146,-715.88,0.00010116,2]
[352270182,1739022643155,-508.17,0.00010116,2]
[352270184,1739022643165,-1976.24,0.00010116,2]
[352270187,1739022643174,-1182.29,0.00010116,2]
[352270189,1739022643183,-500.0,0.00010116,2]
[352270192,1739022643192,-851.05,0.00010116,2]
[352270195,1739022643201,-500.0,0.00010116,2]
[352270198,1739022643210,-500.0,0.00010116,2]
[352270201,1739022643218,-500.0,0.00010116,2]
[352270204,1739022643227,-500.0,0.00010116,2]
[352270206,1739022643238,-500.0,0.00010116,2]
[352270209,1739022643247,-500.0,0.00010116,2]
[352270212,1739022643256,-4439.76,0.00010116,2]
[352270216,1739022643265,-500.0,0.00010116,2]
[352270219,1739022643273,-573.26,0.00010116,2]
[352270221,1739022643282,-808.38,0.00010116,2]
[352270224,1739022643291,-686.26,0.00010116,2]
[352270227,1739022643302,-500.0,0.00010116,2]
[352270230,1739022643311,-404.657837,0.00010117,2]
[352270233,1739022643321,-500.0,0.00010117,2]
[352270236,1739022643330,-720.8,0.00010117,2]
[352270238,1739022643340,-708.48,0.00010117,2]
[352270241,1739022643349,-500.0,0.00010117,2]
[352270244,1739022643358,-500.0,0.00010117,2]
[352270247,1739022643367,-632.37,0.00010117,2]
[352270250,1739022643376,-500.0,0.00010117,2]
[352270253,1739022643385,-500.0,0.00010117,2]
[352270256,1739022643394,-500.0,0.00010117,2]
[352270259,1739022643404,-500.0,0.00010117,2]
[352270261,1739022643413,-500.0,0.00010117,2]
[352270262,1739022643422,-506.93319023,0.00010251,2]
[352270263,1739022643431,-500.0,0.00010252,2]
[352270264,1739022643441,-566.86,0.00010252,2]
[352270265,1739022643450,-411.01420952,0.00010252,2]
[352270266,1739022643459,-500.0,0.00010252,2]
[352270267,1739022643472,-500.0,0.00010252,2]
[352270268,1739022643484,-451.25233799,0.00010252,2]
[352270292,1739022643819,-49.55464745,0.00010252,2]
[352270294,1739022643828,-500.0,0.00010252,2]
[352270296,1739022643837,-500.0,0.00010252,2]
[352270298,1739022643846,-500.0,0.00010252,2]
[352270300,1739022643855,-329.55271213,0.00010252,2]
[352270302,1739022643865,-500.0,0.00010252,2]
[352270304,1739022643874,-500.0,0.00010252,2]
[352270306,1739022643883,-500.0,0.00010252,2]
[352270308,1739022643892,-500.0,0.00010252,2]
[352270310,1739022643901,-4.04764042,0.00010252,2]
[352270312,1739022643912,-501.42368741,0.00010252,2]
[352270314,1739022643922,-500.0,0.00010252,2]
[352270316,1739022643931,-500.0,0.00010252,2]
[352270318,1739022643940,-958.22,0.00010252,2]
[352270320,1739022643949,-716.72,0.00010252,2]
[352270322,1739022643958,-892.8,0.00010252,2]
[352270324,1739022643967,-607.07131259,0.00010252,2]
[352270327,1739022643979,-648.96304641,0.00010252,2]
[352270329,1739022643988,-1019.41,0.00010252,2]
[352270331,1739022643997,-624.22,0.00010252,2]
[352270333,1739022644006,-1203.15,0.00010252,2]
[352270335,1739022644015,-1023.24,0.00010252,2]
[352270337,1739022644024,-611.63,0.00010252,2]
[352270339,1739022644033,-1445.707636,0.00010252,2]
[352270341,1739022644042,-500.0,0.00010252,2]
[352270343,1739022644051,-821.55,0.00010252,2]
[352270345,1739022644060,-500.0,0.00010252,2]
[352270347,1739022644069,-500.0,0.00010252,2]
[352270348,1739022644078,-500.0,0.00010252,2]
[352270351,1739022644087,-1140.3,0.00010252,2]
[352270353,1739022644096,-557.67,0.00010252,2]
[352270354,1739022644106,-1028.64,0.00010252,2]
[352270356,1739022644115,-750.71,0.00010252,2]
[352270359,1739022644124,-500.0,0.00010252,2]
[352270360,1739022644133,-5166.67,0.00010252,2]
[352270362,1739022644142,-500.0,0.00010252,2]
[352270364,1739022644151,-260.42606088,0.00010252,2]
[352270367,1739022644162,-732.80393912,0.00010252,2]
[352270369,1739022644171,-602.11,0.00010252,2]
[352270371,1739022644180,-500.0,0.00010252,2]
[352270373,1739022644188,-939.32,0.00010252,2]
[352270375,1739022644198,-679.97,0.00010252,2]
[352270377,1739022644206,-500.0,0.00010252,2]
[352270379,1739022644215,-437.55222546,0.00010252,2]
[352270407,1739022644475,-501.05777454,0.00010252,2]
[352270409,1739022644485,-748.38,0.00010252,2]
[352270411,1739022644494,-500.0,0.00010252,2]
[352270413,1739022644503,-1249.56,0.00010252,2]
[352270415,1739022644512,-1190.95,0.00010252,2]
[352270417,1739022644521,-547.3,0.00010252,2]
[352270419,1739022644531,-500.0,0.00010252,2]
[352270421,1739022644539,-787.77,0.00010252,2]
[352270423,1739022644548,-959.76,0.00010252,2]
[352270425,1739022644558,-1584.28,0.00010252,2]
[352270427,1739022644568,-500.0,0.00010252,2]
[352270429,1739022644577,-819.07,0.00010252,2]
[352270431,1739022644587,-689.5,0.00010252,2]
[352270433,1739022644599,-697.86821865,0.00010252,2]
[352270435,1739022644613,-33.49178135,0.00010252,2]
[352270437,1739022644622,-667.42,0.00010252,2]
[352270439,1739022644631,-133.17834455,0.00010252,2]
[352270441,1739022644644,-495.56429949,0.00010252,2]
[352270444,1739022644655,-1111.68,0.00010252,2]
[352270446,1739022644664,-1624.42,0.00010252,2]
[352270448,1739022644675,-702.87,0.00010252,2]